Workbook

Sheet 古建班组招标清单
A1: 2025年“A”项目廊亭修复劳务班组采购清单及报价表
A2: 序号 | B2: 项目名称 | C2: 项目特征描述 | D2: 计量 单位 | E2: 工程量 | F2: 金额（元） | H2: 金额（元） | J2: 备注
F3: 全费用单价限价 | G3: 合价 | H3: 班组所报全费用单价 | I3: 合价
B4: 凌云公园连廊一
A5: 1 | B5: 满堂脚手架 | C5: 1．搭设方式：综合 2．檐口高度：综合 3.工程量计算规则：按脚手架搭设水平投影面积计算 4.做法要求：满足设计及现行施工技术、质量验收规范要求 | D5: m2 | E5: 35.15 | F5: 20 | G5: =F5*E5 -> 703.00
A6: 2 | B6: 屋面板拆除 | C6: 1.构件名称：屋面板 2.拆除构件的厚度或规格尺寸：综合 3.拆除屋面板及附着物、建渣整理、建渣堆放、建渣运输、建渣外弃、周边成品保护等均包含在综合单价内，不再另计 4.工程量计算规则：按实际拆除屋面板面积计算 5.做法要求：满足设计及现行施工技术、质量验收规范要求 | D6: m2 | E6: 39.41 | F6: 24 | G6: =F6*E6 -> 945.84
A7: 3 | B7: 望板拆换（原有材料不利旧） | C7: 1.构件名称：望板 2.拆除和更换构件的厚度或规格尺寸：详见施工图 3.拆除望板、更换为红柳桉防腐木望板、建渣整理、建渣堆放、建渣运输、建渣外弃、周边成品保护等均包含在综合单价内，不再另计 4.工程量计算规则：按实际更换望板面积计算 5.做法要求：满足设计及现行施工技术、质量验收规范要求 | D7: m2 | E7: 29.41 | F7: 130 | G7: 3823.30
A8: 4 | B8: 望板拆换（原有材料利旧） | C8: 1.构件名称：望板 2.拆除和更换构件的厚度或规格尺寸：详见施工图 3.拆除望板、原有望板利旧安装、建渣整理、建渣堆放、建渣运输、建渣外弃、周边成品保护等均包含在综合单价内，不再另计 4.工程量计算规则：按实际更换望板面积计算 5.做法要求：满足设计及现行施工技术、质量验收规范要求 | D8: m2 | E8: 10 | F8: 20 | G8: 200.00
A9: 5 | B9: 50×100椽子拆换（原有材料不利旧） | C9: 1.构件名称：椽子 2.拆除和更换构件的厚度或规格尺寸：详见施工图 3.拆除椽子、更换为红柳桉防腐木椽子、建渣整理、建渣堆放、建渣运输、建渣外弃、周边成品保护等均包含在综合单价内，不再另计 4.工程量计算规则：按实际更换椽子木材体积计算 5.做法要求：满足设计及现行施工技术、质量验收规范要求 | D9: m | E9: 201.34 | F9: 40 | G9: 8053.60
A10: 6 | B10: 50×100椽子拆换（原有材料利旧） | C10: 1.构件名称：椽子 2.拆除和更换构件的厚度或规格尺寸：详见施工图 3.拆除椽子、原有椽子利旧安装、建渣整理、建渣堆放、建渣运输、建渣外弃、周边成品保护等均包含在综合单价内，不再另计 4.工程量计算规则：按实际更换椽子木材体积计算 5.做法要求：满足设计及现行施工技术、质量验收规范要求 | D10: m | E10: 50 | F10: 8 | G10: 400.00
A11: 7 | B11: 封檐板拆换 | C11: 1.构件名称：封檐板 2.拆除和更换构件的厚度或规格尺寸：详见施工图 3.拆除封檐板、更换为红柳桉防腐木封檐板、建渣整理、建渣堆放、建渣运输、建渣外弃、周边成品保护等均包含在综合单价内，不再另计 4.工程量计算规则：按实际更换封檐板长度计算 5.做法要求：满足设计及现行施工技术、质量验收规范要求 | D11: m | E11: 25.1 | F11: 45 | G11: 1129.50
A12: 8 | B12: 木构件维修刷漆 | C12: 1.基层处理方法：清除打磨原有漆面 2.腻子做法：刮腻子二遍 3.油漆品种、刷漆遍数：刷丙烯酸底漆2遍，面漆2遍 4.建渣整理、建渣堆放、建渣运输、建渣外弃、周边成品保护等均包含在综合单价内，不再另计 5.工程量计算规则：按油漆可视面面积计算 6.做法要求：满足设计及现行施工技术、质量验收规范要求 | D12: m2 | E12: 205.5 | F12: 80 | G12: 16440.00
A13: 9 | B13: 立柱碳纤维加固 | C13: 1.工程内容：碳纤维加固 2.工程量计算规则：按立柱碳纤维加固面积计算 3.做法要求：满足设计及现行施工技术、质量验收规范要求 | D13: m2 | E13: 10 | F13: 450 | G13: 4500.00
A14: 10 | B14: 屋面卷材防水及保护层 | C14: 1.卷材品种、规格：自粘SBS防水层、厚1.5mm 2.防水层作法： (1)1.5mm自粘SBS防水层 (2)铺钢丝网 3.防护材料种类:25mm厚1：2.5水泥砂浆 4.做法要求：满足设计及现行施工技术、质量验收规范要求 | D14: m2 | E14: 39.41 | F14: 115 | G14: 4532.15
A15: 11 | B15: 小青瓦屋面 | C15: 1.屋面类型：小青瓦 2.瓦件规格尺寸：综合 3.坐浆配合比及强度等级：M5混合砂浆 4.板瓦铺砌一搭三，安装成品滴瓦 5.做法要求：满足设计及现行施工技术、质量验收规范要求 | D15: m2 | E15: 39.41 | F15: 130 | G15: 5123.30
A16: 12 | B16: 檐口滴水 | C16: 1.类型：成品滴水 2.瓦件规格尺寸：综合 3.坐浆配合比及强度等级：M5混合砂浆 4.做法要求：满足设计及现行施工技术、质量验收规范要求 | D16: m | E16: 21.3 | F16: 40 | G16: 852.00
A17: 13 | B17: 瓦脊制安 | C17: 1.类型：成品瓦脊 2.瓦件规格尺寸：综合 3.坐浆配合比及强度等级：M5混合砂浆 4.做法要求：满足设计及现行施工技术、质量验收规范要求 | D17: m | E17: 10.65 | F17: 130 | G17: 1384.50
A18: 14 | B18: 木靠椅拆换 | C18: 1.构件名称：木靠椅 2.拆除和更换构件的厚度或规格尺寸：详见施工图 3.拆除木靠椅、更换为红柳桉防腐木靠椅、建渣整理、建渣堆放、建渣运输、建渣外弃、周边成品保护等均包含在综合单价内，不再另计 4.工程量计算规则：按实际更换木靠椅长度计算 5.做法要求：满足设计及现行施工技术、质量验收规范要求 | D18: m | E18: 18.5 | F18: 950 | G18: 17575.00
A19: 15 | B19: 方柱更换 | C19: 1.构件名称：方柱 2.拆除和更换构件的厚度或规格尺寸：详见施工图 3.拆除方柱、更换为红柳桉防腐木方柱、建渣整理、建渣堆放、建渣运输、建渣外弃、周边成品保护等均包含在综合单价内，不再另计 4.工程量计算规则：按实际更换方柱木材体积计算 5.做法要求：满足设计及现行施工技术、质量验收规范要求 | D19: m3 | E19: 0.39 | F19: 7500 | G19: 2925.00
A20: 16 | B20: 拆除柱脚花岗石 | C20: 1.拆除饰面材料种类：花岗石 2.拆除厚度或规格尺寸：详见施工图 3.建渣整理、建渣堆放、建渣运输、建渣外弃、周边成品保护等均包含在综合单价内，不再另计 4.工程量计算规则：按实际拆除花岗石面积计算 5.做法要求：满足设计及现行施工技术、质量验收规范要求 | D20: m2 | E20: 2.88 | F20: 20 | G20: 57.60
A21: 17 | B21: 磉墩 | C21: 1.石材种类、构件规格：青石 400×400×400 2.木柱埋入柱脚不低于10cm 3.做法要求：满足设计及现行施工技术、质量验收规范要求 | D21: 只 | E21: 8 | F21: 560 | G21: 4480.00
A22: 18 | B22: 木构架安装起重脚手架 | C22: 1．搭设方式：综合 2．高度：综合 3.工程量计算规则：按脚手架搭设水平投影面积计算 4.做法要求：满足设计及现行施工技术、质量验收规范要求 | D22: m2 | E22: 35.15 | F22: 130 | G22: 4569.50
A23: 19 | B23: 匾额 | C23: 1.外形尺寸、板厚度：1500×800×50牌匾 2.表面刷黑色油漆，字体内容现场拓印，重新还原 | D23: 块 | E23: 1 | F23: 800 | G23: 800.00
A24: 20 | B24: 楹联 | C24: 1.外形尺寸、板厚度：1800×180×30柱子牌匾 2.表面刷黑色油漆，字体内容现场拓印，重新还原 | D24: 块 | E24: 2 | F24: 400 | G24: 800.00
B25: 凌云公园连廊二
A26: 21 | B26: 满堂脚手架 | C26: 1．搭设方式：综合 2．檐口高度：综合 3.工程量计算规则：按脚手架搭设水平投影面积计算 4.做法要求：满足设计及现行施工技术、质量验收规范要求 | D26: m2 | E26: 62.7 | F26: 20 | G26: =F26*E26 -> 1254.00
A27: 22 | B27: 拆除小青瓦 | C27: 1.瓦品种、规格：小青瓦 2.拆除小青瓦、建渣整理、建渣堆放、建渣运输、建渣外弃、周边成品保护等均包含在综合单价内，不再另计 3.工程量计算规则：按连廊屋面面积计算 4.做法要求：满足设计及现行施工技术、质量验收规范要求 | D27: m2 | E27: 70.3 | F27: 8 | G27: 562.40
A28: 23 | B28: 50×100椽子拆换（原有材料不利旧） | C28: 1.构件名称：椽子 2.拆除和更换构件的厚度或规格尺寸：详见施工图 3.拆除椽子、更换为红柳桉防腐木椽子、建渣整理、建渣堆放、建渣运输、建渣外弃、周边成品保护等均包含在综合单价内，不再另计 4.工程量计算规则：按实际更换椽子木材体积计算 5.做法要求：满足设计及现行施工技术、质量验收规范要求 | D28: m | E28: 796 | F28: 40 | G28: 31840.00
A29: 24 | B29: 50×100椽子拆换（原有材料利旧） | C29: 1.构件名称：椽子 2.拆除和更换构件的厚度或规格尺寸：详见施工图 3.拆除椽子、原有椽子利旧安装、建渣整理、建渣堆放、建渣运输、建渣外弃、周边成品保护等均包含在综合单价内，不再另计 4.工程量计算规则：按实际更换椽子木材体积计算 5.做法要求：满足设计及现行施工技术、质量验收规范要求 | D29: m | E29: 100 | F29: 8 | G29: 800.00
A30: 25 | B30: 封檐板拆换 | C30: 1.构件名称：封檐板 2.拆除和更换构件的厚度或规格尺寸：详见施工图 3.拆除封檐板、更换为红柳桉防腐木封檐板、建渣整理、建渣堆放、建渣运输、建渣外弃、周边成品保护等均包含在综合单价内，不再另计 4.工程量计算规则：按实际更换封檐板长度计算 5.做法要求：满足设计及现行施工技术、质量验收规范要求 | D30: m | E30: 41.8 | F30: 45 | G30: 1881.00
A31: 26 | B31: 木构件维修刷漆 | C31: 1.基层处理方法：清除打磨原有漆面 2.腻子做法：刮腻子二遍 3.油漆品种、刷漆遍数：刷丙烯酸底漆2遍，面漆2遍 4.建渣整理、建渣堆放、建渣运输、建渣外弃、周边成品保护等均包含在综合单价内，不再另计 5.工程量计算规则：按油漆可视面面积计算 6.做法要求：满足设计及现行施工技术、质量验收规范要求 | D31: m2 | E31: 216.5 | F31: 80 | G31: 17320.00
A32: 27 | B32: 屋面卷材防水及保护层 | C32: 1.卷材品种、规格：自粘SBS防水层、厚1.5mm 2.防水层作法： (1)1.5mm自粘SBS防水层 (2)铺钢丝网 3.防护材料种类:25mm厚1：2.5水泥砂浆 4.做法要求：满足设计及现行施工技术、质量验收规范要求 | D32: m2 | E32: 216.5 | F32: 115 | G32: 24897.50
A33: 28 | B33: 小青瓦屋面 | C33: 1.屋面类型：小青瓦 2.瓦件规格尺寸：综合 3.坐浆配合比及强度等级：M5混合砂浆 4.板瓦铺砌一搭三，安装成品滴瓦 5.做法要求：满足设计及现行施工技术、质量验收规范要求 | D33: m2 | E33: 70.3 | F33: 130 | G33: 9139.00
A34: 29 | B34: 檐口滴水 | C34: 1.类型：成品滴水 2.瓦件规格尺寸：综合 3.坐浆配合比及强度等级：M5混合砂浆 4.做法要求：满足设计及现行施工技术、质量验收规范要求 | D34: m | E34: 38 | F34: 40 | G34: 1520.00
A35: 30 | B35: 瓦脊制安 | C35: 1.类型：成品瓦脊 2.瓦件规格尺寸：综合 3.坐浆配合比及强度等级：M5混合砂浆 4.做法要求：满足设计及现行施工技术、质量验收规范要求 | D35: m | E35: 19 | F35: 130 | G35: 2470.00
A36: 31 | B36: 木靠椅拆换 | C36: 1.构件名称：木靠椅 2.拆除和更换构件的厚度或规格尺寸：详见施工图 3.拆除木靠椅、更换为红柳桉防腐木靠椅、建渣整理、建渣堆放、建渣运输、建渣外弃、周边成品保护等均包含在综合单价内，不再另计 4.工程量计算规则：按实际更换木靠椅长度计算 5.做法要求：满足设计及现行施工技术、质量验收规范要求 | D36: m | E36: 29.84 | F36: 950 | G36: 28348.00
A37: 32 | B37: 方柱更换 | C37: 1.构件名称：方柱 2.拆除和更换构件的厚度或规格尺寸：详见施工图 3.拆除方柱、更换为红柳桉防腐木方柱、建渣整理、建渣堆放、建渣运输、建渣外弃、周边成品保护等均包含在综合单价内，不再另计 4.工程量计算规则：按实际更换方柱木材体积计算 5.做法要求：满足设计及现行施工技术、质量验收规范要求 | D37: m3 | E37: 0.48 | F37: 7500 | G37: 3600.00
A38: 33 | B38: 拆除柱脚花岗石 | C38: 1.拆除饰面材料种类：花岗石 2.拆除厚度或规格尺寸：详见施工图 3.建渣整理、建渣堆放、建渣运输、建渣外弃、周边成品保护等均包含在综合单价内，不再另计 4.工程量计算规则：按实际拆除花岗石面积计算 5.做法要求：满足设计及现行施工技术、质量验收规范要求 | D38: m2 | E38: 3.6 | F38: 20 | G38: 72.00
A39: 34 | B39: 磉墩 | C39: 1.石材种类、构件规格：青石 400×400×400 2.木柱埋入柱脚不低于10cm 3.做法要求：满足设计及现行施工技术、质量验收规范要求 | D39: 只 | E39: 10 | F39: 560 | G39: 5600.00
A40: 35 | B40: 木构架安装起重脚手架 | C40: 1．搭设方式：综合 2．高度：综合 3.工程量计算规则：按脚手架搭设水平投影面积计算 4.做法要求：满足设计及现行施工技术、质量验收规范要求 | D40: m2 | E40: 62.7 | F40: 130 | G40: 8151.00
B41: 凌云公园四方亭
A42: 36 | B42: 满堂脚手架 | C42: 1．搭设方式：综合 2．檐口高度：综合 3.工程量计算规则：按脚手架搭设水平投影面积计算 4.做法要求：满足设计及现行施工技术、质量验收规范要求 | D42: m2 | E42: 23.43 | F42: 20 | G42: =F42*E42 -> 468.60
A43: 37 | B43: 50×100椽子拆换（原有材料不利旧） | C43: 1.构件名称：椽子 2.拆除和更换构件的厚度或规格尺寸：详见施工图 3.拆除椽子、更换为红柳桉防腐木椽子、建渣整理、建渣堆放、建渣运输、建渣外弃、周边成品保护等均包含在综合单价内，不再另计 4.工程量计算规则：按实际更换椽子木材体积计算 5.做法要求：满足设计及现行施工技术、质量验收规范要求 | D43: m | E43: 126.28 | F43: 40 | G43: =F43*E43 -> 5051.20
A44: 38 | B44: 50×100椽子拆换（原有材料利旧） | C44: 1.构件名称：椽子 2.拆除和更换构件的厚度或规格尺寸：详见施工图 3.拆除椽子、原有椽子利旧安装、建渣整理、建渣堆放、建渣运输、建渣外弃、周边成品保护等均包含在综合单价内，不再另计 4.工程量计算规则：按实际更换椽子木材体积计算 5.做法要求：满足设计及现行施工技术、质量验收规范要求 | D44: m | E44: 50 | F44: 8 | G44: =F44*E44 -> 400.00
A45: 39 | B45: 封檐板拆换 | C45: 1.构件名称：封檐板 2.拆除和更换构件的厚度或规格尺寸：详见施工图 3.拆除封檐板、更换为红柳桉防腐木封檐板、建渣整理、建渣堆放、建渣运输、建渣外弃、周边成品保护等均包含在综合单价内，不再另计 4.工程量计算规则：按实际更换封檐板长度计算 5.做法要求：满足设计及现行施工技术、质量验收规范要求 | D45: m | E45: 19.4 | F45: 45 | G45: 873.00
A46: 40 | B46: 木构件维修刷漆 | C46: 1.基层处理方法：清除打磨原有漆面 2.腻子做法：刮腻子二遍 3.油漆品种、刷漆遍数：刷丙烯酸底漆2遍，面漆2遍 4.建渣整理、建渣堆放、建渣运输、建渣外弃、周边成品保护等均包含在综合单价内，不再另计 5.工程量计算规则：按油漆可视面面积计算 6.做法要求：满足设计及现行施工技术、质量验收规范要求 | D46: m2 | E46: 65 | F46: 80 | G46: 5200.00
A47: 41 | B47: 屋面卷材防水及保护层 | C47: 1.卷材品种、规格：自粘SBS防水层、厚1.5mm 2.防水层作法： (1)1.5mm自粘SBS防水层 (2)铺钢丝网 3.防护材料种类:25mm厚1：2.5水泥砂浆 4.做法要求：满足设计及现行施工技术、质量验收规范要求 | D47: m2 | E47: 27.64 | F47: 115 | G47: 3178.60
A48: 42 | B48: 小青瓦屋面 | C48: 1.屋面类型：小青瓦 2.瓦件规格尺寸：综合 3.坐浆配合比及强度等级：M5混合砂浆 4.板瓦铺砌一搭三，安装成品滴瓦 5.做法要求：满足设计及现行施工技术、质量验收规范要求 | D48: m2 | E48: 27.64 | F48: 130 | G48: 3593.20
A49: 43 | B49: 檐口滴水 | C49: 1.类型：成品滴水 2.瓦件规格尺寸：综合 3.坐浆配合比及强度等级：M5混合砂浆 4.做法要求：满足设计及现行施工技术、质量验收规范要求 | D49: m | E49: 19.4 | F49: 40 | G49: 776.00
A50: 44 | B50: 瓦脊制安 | C50: 1.类型：成品瓦脊 2.瓦件规格尺寸：综合 3.坐浆配合比及强度等级：M5混合砂浆 4.做法要求：满足设计及现行施工技术、质量验收规范要求 | D50: m | E50: 27.4 | F50: 130 | G50: 3562.00
A51: 45 | B51: 宝顶（中堆、天五座） | C51: 1.类型：宝顶 2.规格尺寸：高820mm 3.做法要求：满足设计及现行施工技术、质量验收规范要求 | D51: 座 | E51: 1 | F51: 837.49 | G51: =F51*E51 -> 837.49
A52: 46 | B52: 吻（兽） | C52: 1.类型：吻（兽） 2.规格尺寸：详见施工图 3.做法要求：满足设计及现行施工技术、质量验收规范要求 | D52: 只 | E52: 4 | F52: 236.05 | G52: 944.20
A53: 47 | B53: 木靠椅拆换 | C53: 1.构件名称：木靠椅 2.拆除和更换构件的厚度或规格尺寸：详见施工图 3.拆除木靠椅、更换为红柳桉防腐木靠椅、建渣整理、建渣堆放、建渣运输、建渣外弃、周边成品保护等均包含在综合单价内，不再另计 4.工程量计算规则：按实际更换木靠椅长度计算 5.做法要求：满足设计及现行施工技术、质量验收规范要求 | D53: m | E53: 6.8 | F53: 950 | G53: 6460.00
A54: 48 | B54: 方柱更换 | C54: 1.构件名称：方柱 2.拆除和更换构件的厚度或规格尺寸：详见施工图 3.拆除方柱、更换为红柳桉防腐木方柱、建渣整理、建渣堆放、建渣运输、建渣外弃、周边成品保护等均包含在综合单价内，不再另计 4.工程量计算规则：按实际更换方柱木材体积计算 5.做法要求：满足设计及现行施工技术、质量验收规范要求 | D54: m3 | E54: 0.19 | F54: 7500 | G54: 1425.00
A55: 49 | B55: 磉墩 | C55: 1.石材种类、构件规格：青石 400×400×400 2.木柱埋入柱脚不低于10cm 3.做法要求：满足设计及现行施工技术、质量验收规范要求 | D55: 只 | E55: 4 | F55: 560 | G55: 2240.00
A56: 50 | B56: 木构架安装起重脚手架 | C56: 1．搭设方式：综合 2．高度：综合 3.工程量计算规则：按脚手架搭设水平投影面积计算 4.做法要求：满足设计及现行施工技术、质量验收规范要求 | D56: m2 | E56: 23.43 | F56: 130 | G56: 3045.90
A57: 51 | B57: 匾额 | C57: 1.外形尺寸、板厚度：1500×800×50牌匾 2.表面刷黑色油漆，字体内容现场拓印，重新还原 | D57: 块 | E57: 1 | F57: 800 | G57: 800.00
A58: 52 | B58: 楹联 | C58: 1.外形尺寸、板厚度：1800×180×30柱子牌匾 2.表面刷黑色油漆，字体内容现场拓印，重新还原 | D58: 块 | E58: 2 | F58: 400 | G58: 800.00
B59: 凌云公园茅草亭(A、B、C)
A60: 53 | B60: 脚手架 | C60: 1．搭设方式：综合 2．檐口高度：综合 3.工程量计算规则：按脚手架搭设水平投影面积计算 4.做法要求：满足设计及现行施工技术、质量验收规范要求 | D60: m2 | E60: 206.08 | F60: 20 | G60: =F60*E60 -> 4121.60
A61: 54 | B61: 茅草屋面茅草拆除 | C61: 1.构件名称：茅草屋面茅草 2.拆除构件的厚度或规格尺寸：综合 3.拆除茅草屋面茅草及附着物、建渣整理、建渣堆放、建渣运输、建渣外弃、周边成品保护等均包含在综合单价内，不再另计 4.工程量计算规则：按实际拆除茅草屋面茅草面积计算 5.做法要求：满足设计及现行施工技术、质量验收规范要求 | D61: m2 | E61: 253.35 | F61: 8 | G61: 2026.80
A62: 55 | B62: 望板拆换（原有材料不利旧） | C62: 1.构件名称：望板 2.拆除和更换构件的厚度或规格尺寸：详见施工图 3.拆除望板、更换为红柳桉防腐木望板、建渣整理、建渣堆放、建渣运输、建渣外弃、周边成品保护等均包含在综合单价内，不再另计 4.工程量计算规则：按实际更换望板面积计算 5.做法要求：满足设计及现行施工技术、质量验收规范要求 | D62: m2 | E62: 203.35 | F62: 130 | G62: 26435.50
A63: 56 | B63: 望板拆换（原有材料利旧） | C63: 1.构件名称：望板 2.拆除和更换构件的厚度或规格尺寸：详见施工图 3.拆除望板、原有望板利旧安装、建渣整理、建渣堆放、建渣运输、建渣外弃、周边成品保护等均包含在综合单价内，不再另计 4.工程量计算规则：按实际更换望板面积计算 5.做法要求：满足设计及现行施工技术、质量验收规范要求 | D63: m2 | E63: 50 | F63: 20 | G63: 1000.00
A64: 57 | B64: 60×80椽子拆换（原有材料不利旧） | C64: 1.构件名称：椽子 2.拆除和更换构件的厚度或规格尺寸：详见施工图 3.拆除椽子、更换为红柳桉防腐木椽子、建渣整理、建渣堆放、建渣运输、建渣外弃、周边成品保护等均包含在综合单价内，不再另计 4.工程量计算规则：按实际更换椽子木材体积计算 5.做法要求：满足设计及现行施工技术、质量验收规范要求 | D64: m | E64: 298.3 | F64: 38 | G64: 11335.40
A65: 58 | B65: 60×80椽子拆换（原有材料利旧） | C65: 1.构件名称：椽子 2.拆除和更换构件的厚度或规格尺寸：详见施工图 3.拆除椽子、原有椽子利旧安装、建渣整理、建渣堆放、建渣运输、建渣外弃、周边成品保护等均包含在综合单价内，不再另计 4.工程量计算规则：按实际更换椽子木材体积计算 5.做法要求：满足设计及现行施工技术、质量验收规范要求 | D65: m | E65: 200 | F65: 10 | G65: 2000.00
A66: 59 | B66: 封檐板拆换 | C66: 1.构件名称：封檐板 2.拆除和更换构件的厚度或规格尺寸：详见施工图 3.拆除封檐板、更换为红柳桉防腐木封檐板、建渣整理、建渣堆放、建渣运输、建渣外弃、周边成品保护等均包含在综合单价内，不再另计 4.工程量计算规则：按实际更换封檐板长度计算 5.做法要求：满足设计及现行施工技术、质量验收规范要求 | D66: m | E66: 125 | F66: 45 | G66: 5625.00
A67: 60 | B67: 木构件（椽子、望板、封檐板、木坐凳）维修刷漆 | C67: 1.基层处理方法：清除打磨原有漆面 2.腻子做法：刮腻子二遍 3.油漆品种、刷漆遍数：油性透明封固底漆一遍，刷丙烯酸底漆2遍，刷木清漆1遍 4.建渣整理、建渣堆放、建渣运输、建渣外弃、周边成品保护等均包含在综合单价内，不再另计 5.工程量计算规则：按油漆可视面面积计算 6.做法要求：满足设计及现行施工技术、质量验收规范要求 | D67: m2 | E67: 517 | F67: 80 | G67: 41360.00
A68: 61 | B68: 圆木维修刷漆 | C68: 1.基层处理方法：清除打磨原有漆面 2.油漆品种、刷漆遍数：油性透明封固底漆一遍，刷丙烯酸底漆2遍，刷木清漆1遍 3.建渣整理、建渣堆放、建渣运输、建渣外弃、周边成品保护等均包含在综合单价内，不再另计 4.工程量计算规则：按油漆可视面面积计算 5.做法要求：满足设计及现行施工技术、质量验收规范要求 | D68: m2 | E68: 120 | F68: 60 | G68: 7200.00
A69: 62 | B69: 屋面卷材防水及保护层 | C69: 1.卷材品种、规格：自粘SBS防水层、厚1.5mm 2.防水层作法： (1)1.5mm自粘SBS防水层 (2)铺钢丝网 3.防护材料种类:25mm厚1：2.5水泥砂浆 4.做法要求：满足设计及现行施工技术、质量验收规范要求 | D69: m2 | E69: 253.35 | F69: 115 | G69: 29135.25
A70: 63 | B70: 小青瓦屋面 | C70: 1.屋面类型：小青瓦 2.瓦件规格尺寸：综合 3.坐浆配合比及强度等级：M5混合砂浆 4.板瓦铺砌一搭三，安装成品滴瓦 5.做法要求：满足设计及现行施工技术、质量验收规范要求 | D70: m2 | E70: 253.35 | F70: 130 | G70: 32935.50
A71: 64 | B71: 檐口滴水 | C71: 1.类型：成品滴水 2.瓦件规格尺寸：综合 3.坐浆配合比及强度等级：M5混合砂浆 4.做法要求：满足设计及现行施工技术、质量验收规范要求 | D71: m | E71: 89.6 | F71: 40 | G71: 3584.00
A72: 65 | B72: 瓦脊制安 | C72: 1.类型：成品瓦脊 2.瓦件规格尺寸：综合 3.坐浆配合比及强度等级：M5混合砂浆 4.做法要求：满足设计及现行施工技术、质量验收规范要求 | D72: m | E72: 44.8 | F72: 130 | G72: 5824.00
A73: 66 | B73: 匾额 | C73: 1.外形尺寸、板厚度：1200×800×50牌匾 2.表面刷黑色油漆，字体内容，样式由业主提供 | D73: 块 | E73: 3 | F73: 800 | G73: 2400.00
A74: 67 | B74: 楹联 | C74: 1.外形尺寸、板厚度：1800×180×30柱子牌匾 2.表面刷黑色油漆，字体内容，样式由业主提供 | D74: 块 | E74: 6 | F74: 400 | G74: 2400.00
B75: 紫阳大道四方亭及候车亭
A76: 68 | B76: 双排脚手架 | C76: 1．搭设方式：综合 2．檐口高度：综合 3.工程量计算规则：按脚手架搭设垂直投影面积计算 4.做法要求：满足设计及现行施工技术、质量验收规范要求 | D76: m2 | E76: 119.07 | F76: 24 | G76: =F76*E76 -> 2857.68
A77: 69 | B77: 封檐板拆换 | C77: 1.构件名称：封檐板 2.拆除和更换构件的厚度或规格尺寸：详见施工图 3.拆除封檐板、更换为红柳桉防腐木封檐板、建渣整理、建渣堆放、建渣运输、建渣外弃、周边成品保护等均包含在综合单价内，不再另计 4.工程量计算规则：按实际更换封檐板长度计算 5.做法要求：满足设计及现行施工技术、质量验收规范要求 | D77: m | E77: 42.35 | F77: 45 | G77: 1905.75
A78: 70 | B78: 木构件维修刷漆 | C78: 1.基层处理方法：清除打磨原有漆面 2.腻子做法：刮腻子二遍 3.油漆品种、刷漆遍数：油性透明封固底漆一遍，刷丙烯酸底漆2遍，刷猪肝色面漆2遍 4.建渣整理、建渣堆放、建渣运输、建渣外弃、周边成品保护等均包含在综合单价内，不再另计 5.工程量计算规则：按油漆可视面面积计算 6.做法要求：满足设计及现行施工技术、质量验收规范要求 | D78: m2 | E78: 75.6 | F78: 60 | G78: 4536.00
A79: 71 | B79: 匾额 | C79: 1.外形尺寸、板厚度：1500×800×50牌匾 2.表面刷黑色油漆，字体内容现场拓印，重新还原 | D79: 块 | E79: 1 | F79: 800 | G79: 800.00
A80: 72 | B80: 楹联 | C80: 1.外形尺寸、板厚度：1800×180×30柱子牌匾 2.表面刷黑色油漆，字体内容现场拓印，重新还原 | D80: 块 | E80: 2 | F80: 400 | G80: 800.00
A81: 73 | B81: 铲除涂料面 | C81: 1.铲除部位名称：候车亭 2.铲除部位的截面尺寸：详见施工图 3.建渣整理、建渣堆放、建渣运输、建渣外弃、周边成品保护等均包含在综合单价内，不再另计 4.工程量计算规则：按铲除涂料面积计算 5.做法要求：满足设计及现行施工技术、质量验收规范要求 | D81: m2 | E81: 45.9 | F81: 6 | G81: 275.40
A82: 74 | B82: 抹灰面油漆 | C82: 1.基层类型：墙面一般抹灰面 2.腻子种类：成品腻子膏 3.刮腻子要求：清理基层，修补，砂纸打磨；满刮腻子一遍，找补两遍 4.油漆品种、刷漆遍数：刷白色外墙乳胶漆底漆一遍，面漆二遍，喷甲基硅醇钠憎水剂 | D82: m2 | E82: 45.9 | F82: 40 | G82: 1836.00
B83: 麒麟广场廊架修复
A84: 75 | B84: 玻璃雨棚拆除 | C84: 1.构件名称：玻璃雨棚 2.拆除厚度或规格尺寸：6+PVB0.6+6厚钢化夹胶玻璃 3.建渣整理、建渣堆放、建渣运输、建渣外弃、周边成品保护等均包含在综合单价内，不再另计 4.工程量计算规则：按实际拆除钢化夹胶玻璃面积计算 5.做法要求：满足设计及现行施工技术、质量验收规范要求 | D84: m2 | E84: 566.4 | F84: 18 | G84: =F84*E84 -> 10195.20
A85: 76 | B85: 玻璃雨篷 | C85: 1.基层类型：防腐木 2.龙骨材料种类、规格、中距：防腐木（规格、间距详设计） 3.玻璃材料品种、规格、品牌：6+PVB0.6+6厚钢化夹胶玻璃 4.做法要求：满足设计及现行施工技术、质量验收规范要求 | D85: m2 | E85: 566.4 | F85: 500 | G85: 283200.00
A86: 77 | B86: 檩木拆除 | C86: 1.构件名称：檩木 2.拆除构件的厚度或规格尺寸：详施工图 3.拆除檩木、建渣整理、建渣堆放、建渣运输、建渣外弃、周边成品保护等均包含在综合单价内，不再另计 4.工程量计算规则：按实际拆除檩木长度计算 5.做法要求：满足设计及现行施工技术、质量验收规范要求 | D86: m | E86: 2832 | F86: 5 | G86: 14160.00
A87: 78 | B87: 木檩制安（旧材料利用） | C87: 1.构件长度:详施工图 2.构件截面:综合 3.木材种类:红柳桉防腐木（旧材料利用），综合单价含旧材料的清理、堆放、保管等费用。 4.工程量计算规则：按实际安装檩木长度计算 5.做法要求：满足设计及现行施工技术、质量验收规范要求 | D87: m | E87: 1888 | F87: 2.3 | G87: 4342.40
A88: 79 | B88: 木檩制安 | C88: 1.构件长度:详施工图 2.构件截面:综合 3.木材种类:红柳桉防腐木（新购） 4.工程量计算规则：按实际安装檩木长度计算 5.做法要求：满足设计及现行施工技术、质量验收规范要求 | D88: m | E88: 944 | F88: 25 | G88: 23600.00
A89: 80 | B89: 栏杆、栏板拆除 | C89: 1.栏杆、栏板拆除 2.栏杆、栏板种类：红柳桉防腐木 3.拆除栏杆、栏板、建渣整理、建渣堆放、建渣运输、建渣外弃、周边成品保护等均包含在综合单价内，不再另计 4.工程量计算规则：按实际拆除栏杆长度计算 5.做法要求：满足设计及现行施工技术、质量验收规范要求 | D89: m | E89: 3304 | F89: 4 | G89: 13216.00
A90: 81 | B90: 坐凳木方制安 | C90: 1.构件长度:详施工图 2.构件截面:综合 3.木材种类:红柳桉防腐木（新购） 4.工程量计算规则：按实际安装坐凳单根木方长度计算 5.做法要求：满足设计及现行施工技术、质量验收规范要求 | D90: m | E90: 472 | F90: 30 | G90: 14160.00
A91: 82 | B91: 靠背木方制安 | C91: 1.构件长度:详施工图 2.构件截面:综合 3.木材种类:红柳桉防腐木（新购） 4.工程量计算规则：按实际安装靠背单根木方长度计算 5.做法要求：满足设计及现行施工技术、质量验收规范要求 | D91: m | E91: 472 | F91: 30 | G91: 14160.00
A92: 83 | B92: 坐凳及靠背木方安装（旧料利用） | C92: 1.构件长度:详施工图 2.构件截面:综合 3.木材种类:红柳桉防腐木（旧材料利用），综合单价含旧材料的清理、堆放、保管等费用。 4.工程量计算规则：按实际安装坐凳及靠背木方长度计算 5.做法要求：满足设计及现行施工技术、质量验收规范要求 | D92: m | E92: 2360 | F92: 5 | G92: 11800.00
A93: 84 | B93: 铲除木材面油漆 | C93: 1.铲除部位名称：廊架木材 2.铲除部位的截面尺寸：详施工图 | D93: m2 | E93: 1189.44 | F93: 6 | G93: 7136.64
A94: 85 | B94: 木结构刷漆 | C94: 1.部位：廊架木构件 2.木构件打磨去毛刺，刷清漆一遍，咖啡色木纹漆一遍 3.做法要求：满足设计及现行施工技术、质量验收规范要求 | D94: m | E94: 6136 | F94: 17 | G94: 104312.00
A95: 86 | B95: 金属面油漆 | C95: 1.部位：廊架钢构件 2.所有钢构件清洁及打磨除锈，刷红丹防锈漆二遍，喷深灰色氟碳漆 3.做法要求：满足设计及现行施工技术、质量验收规范要求 | D95: m2 | E95: 534.52 | F95: 80 | G95: 42761.60
A96: 87 | B96: 满堂脚手架 | C96: 1．搭设方式：综合 2．檐口高度：综合 3.工程量计算规则：按脚手架搭设水平投影面积计算 4.做法要求：满足设计及现行施工技术、质量验收规范要求 | D96: m2 | E96: 566.4 | F96: 20 | G96: 11328.00
A97: 合 计 | G97: =SUM(G5:G96) -> 1001170.10
A98: 说明： 1.工程量计算规则：除项目特征单独说明外，均按2020年《四川省建设工程工程量清单计价定额》相关规定执行。 2.投标人根据施工图、施工工艺、工序及国家现行规范、自行踏勘现场后综合考虑进行报价，结算时单价不作调整; 3.全费用综合单价包含人工费、所有材料费（含辅材和周转材料费）、机械设备费、工具器具费、临时设施及措施费、大型机械进出场及场内转运费、下车费、吊装费、规费、管理费、配合费、安全文明施工费、以及各种风险费、保险费、施工过程中办理的各种手续费、降水费、排水费、各种检测费、利润、税费等完成该工作所需的全部费用，结算时无论涨跌、工程量增减或其它任何风险因素，均不作调整。 4.现场安全环保文明施工管理要求：（1）由公司统一发放印有“兴绿园林”字样和LOGO的安全帽和反光背心，班组按实名制领取，使用完后交回项目部，否则按采购费用扣款，其余参照合同附件中安全环保管理协议执行。（2）现场雾炮机由甲方提供，投标单位需安排人员管理使用，人工费、油费及管理费用综合考虑到投标报价中，不单独计取。（3）防尘网由甲方提供，投标单位安排人员进行覆盖、回收、现场转移等，人工费综合考虑到投标报价中，不单独计取。 5.该综合单价已包括垃圾外运费用，承包人自行综合考虑。 6.施工中用电由投标人采用发电机发电，所用临时配电箱、用电线路、开关箱、机具等所有材料、设备及安装费用含在综合单价中。
